bitfinex/quotes_ETHUSD_20260109
["timestamp","ask_amount","ask_price","bid_price","bid_amount"]
[1767976337379,0.97513871,3124.6,3123.3,6.40348348]
[1767976337587,0.97513871,3124.6,3123.4,1.16907075]
[1767976337778,0.97513871,3124.3,3123.2,6.65464895]
[1767976340206,0.97513871,3124.7,3123.3,0.99976936]
[1767976340813,0.97513871,3124.7,3123.5,0.001]
[1767976341477,6.4008193,3124.6,3123.5,0.001]
[1767976341677,0.97513871,3124.4,3123.5,0.001]
[1767976343079,0.7375958,3124.5,3123.5,0.001]
[1767976343297,0.97513871,3124.5,3123.5,0.001]
[1767976344418,1.22413871,3124.8,3123.5,0.001]
[1767976344709,4.42434439,3124.8,3123.5,0.001]
[1767976345011,0.97513871,3124.7,3123.5,0.001]
[1767976345403,0.249,3124.8,3123.5,1.00076936]
[1767976345779,4.17516714,3125.0,3123.6,9.60430272]
[1767976346008,0.97513871,3125.0,3123.7,1.06050721]
[1767976346596,0.00081202,3125.1,3123.8,0.99976936]
[1767976346801,0.00081202,3125.1,3123.9,1.25076936]
[1767976347395,0.00081202,3125.1,3124.0,0.99976936]
[1767976347837,0.00081202,3125.1,3124.1,9.60276558]
[1767976347989,0.00081202,3125.1,3124.2,1.06025349]
[1767976348428,0.00081202,3125.1,3124.2,2.06002285]
[1767976349523,0.249,3125.9,3124.2,2.06002285]
[1767976349524,0.97513871,3125.9,3124.4,0.99976936]
[1767976349723,0.97513871,3125.9,3124.7,0.00081283]
[1767976350083,0.97513871,3125.8,3124.8,0.251]
[1767976350328,0.97513871,3125.6,3124.8,0.251]
[1767976351088,0.97513871,3125.9,3124.8,0.251]
[1767976351990,0.97513871,3125.9,3124.9,6.4002048]
[1767976352312,0.002,3126.1,3124.9,10.60007656]
[1767976352892,0.002,3125.3,3124.9,10.60007656]
[1767976353092,0.002,3125.6,3125.0,1.08510766]
[1767976353289,0.002,3126.1,3125.0,1.08510766]
[1767976353511,0.002,3126.1,3125.0,2.08052565]
[1767976353702,0.002,3126.1,3125.1,0.99541799]
[1767976353897,0.94769616,3126.1,3125.1,6.3997952]
[1767976354101,0.94769616,3126.1,3125.2,0.99949029]
[1767976354509,0.94769616,3126.1,3125.1,3.1998976]
[1767976354787,0.94769616,3126.1,3125.1,0.251]
[1767976354982,0.94769616,3126.1,3125.0,3.19996553]
[1767976355183,0.9604413,3126.1,3124.7,0.00081283]
[1767976355387,0.94569616,3125.8,3124.7,3.45209455]
[1767976355624,0.94569616,3125.8,3124.7,0.66607059]
[1767976355787,0.94569616,3125.8,3124.7,0.25181283]
[1767976355994,3.19928336,3125.7,3124.7,3.45206266]
[1767976356221,0.94569616,3125.6,3124.7,3.45206266]
[1767976357024,0.94569616,3125.6,3124.7,6.65236988]
[1767976357419,0.94569616,3125.6,3124.7,3.45206266]
[1767976358027,0.94569616,3125.5,3124.7,3.45206266]
[1767976358230,0.94569616,3125.5,3124.7,0.00081283]
[1767976358614,0.9584413,3125.5,3124.7,0.00081283]
[1767976359230,0.94569616,3125.2,3124.7,0.00081283]
[1767976359404,0.94569616,3125.2,3124.0,3.20096194]
[1767976359609,0.94569616,3125.0,3124.1,0.251]
[1767976359918,0.00081283,3125.1,3124.1,0.251]
[1767976360104,0.00081283,3125.1,3124.4,3.20054226]
[1767976360312,0.00081283,3125.1,3124.2,6.40156304]
[1767976360513,0.00081283,3125.1,3124.3,0.6652563]
[1767976361335,0.00081283,3125.1,3124.3,1.66067429]
[1767976361626,1.19469616,3125.7,3124.7,0.00081364]
[1767976361939,0.94569616,3125.7,3124.7,0.25181364]
[1767976362106,4.14467248,3126.0,3124.7,0.25181364]
[1767976362296,1.70515183,3126.0,3124.8,6.40040962]
[1767976362496,0.94569616,3125.9,3124.8,6.40040962]
[1767976363529,0.002,3126.1,3124.8,9.60061443]
[1767976363695,0.00280136,3126.4,3125.1,0.99541799]
[1767976364326,0.00280136,3126.4,3125.3,0.99541799]
[1767976364492,0.00280136,3126.4,3125.4,0.251]
[1767976365728,0.002,3125.8,3125.4,0.251]
[1767976365962,0.00280136,3126.4,3125.4,0.251]
[1767976366113,0.002,3126.1,3125.4,0.251]
[1767976366442,0.002,3126.1,3125.5,6.39897616]
[1767976366634,0.00280136,3126.4,3125.6,0.66499762]
[1767976367647,0.94849752,3126.4,3125.7,0.251]
[1767976368443,0.94849752,3126.4,3125.7,3.45018675]
[1767976368824,0.00280136,3126.4,3125.7,3.45018675]
[1767976369028,0.00280136,3126.4,3125.8,0.41151844]
[1767976369552,0.99433723,3126.3,3125.8,0.41151844]
[1767976370425,0.00280136,3126.4,3125.8,3.61061478]
[1767976370626,0.00280136,3126.4,3125.8,6.80979578]
[1767976371457,0.99433723,3126.8,3126.0,0.00080144]
[1767976371674,0.99433723,3126.8,3126.0,0.68186116]
[1767976371835,0.99433723,3127.2,3126.1,0.251]
[1767976372021,0.002,3127.4,3126.1,0.251]
[1767976372022,0.002,3127.4,3126.2,0.95527684]
[1767976372217,0.002,3127.7,3126.4,0.95527684]
[1767976372517,0.002,3128.0,3126.7,9.59478042]
[1767976372744,0.002,3128.0,3126.8,1.30600573]
[1767976373157,0.99633723,3128.0,3126.8,1.30600573]
[1767976374057,0.002,3128.0,3126.8,1.30600573]
[1767976374355,0.002,3128.3,3127.0,0.25952256]
[1767976374651,0.002,3128.3,3127.1,10.54882996]
[1767976374957,0.002,3128.3,3127.2,1.08083525]
[1767976376225,0.002,3128.3,3127.3,1.20627684]
[1767976376531,0.0008088,3128.7,3127.5,6.39488408]
[1767976376729,0.0008088,3128.7,3127.5,10.54760296]
[1767976376934,0.0008088,3128.7,3127.6,1.0547603]
[1767976377430,4.19137713,3128.7,3127.7,0.251]
[1767976377647,0.0008088,3128.7,3127.7,0.251]
[1767976377843,4.1913817,3128.7,3127.8,0.251]
[1767976378325,0.99514603,3128.7,3127.8,0.251]
[1767976378656,0.99514603,3128.7,3127.9,3.19703315]
[1767976378960,4.19137316,3128.7,3128.0,0.66451433]
[1767976379155,0.99514603,3128.7,3128.0,0.66451433]
[1767976380153,0.0008088,3128.7,3128.0,0.66451433]
[1767976380836,0.002,3128.9,3128.3,0.0008096]
[1767976381034,0.002,3129.2,3128.4,0.251]
[1767976381247,0.002,3129.6,3128.9,0.0008028]
[1767976381446,0.99633723,3129.6,3128.9,0.0008028]
[1767976381646,0.99433723,3129.5,3128.9,0.0008028]
[1767976382661,0.002,3129.6,3128.9,0.0008028]
[1767976382967,0.002,3130.0,3129.3,0.0008008]
[1767976383186,4.20442248,3130.0,3129.3,0.0008008]
[1767976383482,4.62486473,3130.0,3129.3,0.0008008]
[1767976383622,1.42990503,3130.0,3129.3,0.0008008]
[1767976384168,0.42244225,3130.0,3129.3,0.0008008]
[1767976384460,0.0008,3130.4,3129.3,0.2518008]
[1767976384968,0.0008,3130.4,3129.4,6.39100146]
[1767976385766,0.0008,3130.4,3129.4,10.49799034]
[1767976385963,0.0008,3130.4,3129.5,0.91148815]
[1767976386269,0.0008,3130.4,3129.4,9.58650219]
[1767976386270,1.00746278,3131.4,3130.0,0.00080008]
[1767976386566,1.02020792,3131.4,3130.0,0.00080008]
[1767976386734,1.02020792,3131.4,3130.1,0.251]
[1767976387234,1.00746278,3131.2,3130.1,3.44569496]
[1767976387452,1.74692141,3131.1,3130.1,3.44569496]
[1767976388877,1.00746278,3131.0,3130.0,0.00080008]
[1767976389061,1.00746278,3130.8,3130.0,0.25180008]
[1767976389385,1.00746278,3130.8,3130.0,3.19563482]
[1767976389532,1.00746278,3130.8,3130.1,0.251]
[1767976389740,0.42013772,3130.8,3130.1,0.251]
[1767976389975,1.00746278,3131.0,3130.1,0.251]
[1767976390177,1.00746278,3131.0,3130.0,0.00080008]
[1767976390467,1.00746278,3131.0,3130.0,0.25080008]
[1767976390764,1.00746278,3131.0,3130.1,0.25]
[1767976391064,0.002,3130.8,3130.1,0.25]
[1767976392359,0.74172841,3130.8,3130.1,0.25]
[1767976392657,0.74172841,3130.8,3130.0,0.00080008]
[1767976392857,0.74172841,3130.8,3130.1,0.25]
[1767976393057,3.19417382,3130.7,3130.0,0.00080008]
[1767976393268,4.2016366,3130.7,3130.0,0.25080008]
[1767976393469,4.77004703,3130.7,3130.0,0.25080008]
[1767976393669,1.57587321,3130.7,3130.0,0.25080008]
[1767976394058,0.56841043,3130.7,3130.0,0.25080008]
[1767976396058,0.56841043,3130.7,3130.0,3.44566758]
[1767976396371,0.002,3130.8,3130.0,3.44566758]
[1767976396567,3.19608356,3130.8,3130.0,3.44566758]
[1767976397072,4.20354634,3130.8,3130.0,0.25080008]
[1767976397379,1.00946278,3130.8,3130.0,6.64056123]
[1767976397582,1.00946278,3130.8,3130.0,3.44567306]
[1767976397765,1.00746278,3130.7,3130.0,0.25080008]
[1767976398170,4.20164107,3130.7,3130.0,0.25080008]
[1767976398476,1.00746278,3130.7,3130.0,0.25080008]
[1767976399275,4.20164242,3130.7,3130.0,0.25080008]
[1767976399470,4.9834392,3130.7,3130.0,0.25080008]
[1767976399676,1.78925956,3130.7,3130.0,3.44568685]
[1767976399974,1.00746278,3130.6,3130.0,0.25080008]
[1767976400375,4.2017696,3130.6,3130.0,0.25080008]
[1767976400574,4.72811166,3130.6,3130.0,0.25080008]
[1767976400877,4.72811166,3130.6,3130.0,0.00080008]
[1767976402278,1.53380484,3130.6,3130.0,0.00080008]
[1767976403177,0.002,3130.4,3130.0,0.00080008]
[1767976407259,1.00946278,3130.4,3130.0,0.00080008]
[1767976407570,1.01026286,3130.4,3129.6,0.001]
[1767976408560,1.00746278,3130.2,3129.6,0.001]
[1767976408759,1.00746278,3130.0,3129.6,0.001]
[1767976409695,1.02020792,3130.0,3129.3,0.0008008]
[1767976410392,1.00746278,3129.7,3129.3,0.0008008]
[1767976410613,1.25646278,3129.7,3129.3,0.0008008]
[1767976411304,1.25646278,3129.7,3128.9,0.0008028]
[1767976411305,1.02020792,3129.5,3128.9,0.0008028]
[1767976411593,1.02020792,3129.5,3128.3,0.2508096]
[1767976411594,1.00826558,3129.3,3128.3,0.2508096]
[1767976411895,1.00826558,3129.3,3128.3,0.0008096]
[1767976413258,0.97617561,3129.1,3128.3,0.0008096]
[1767976414175,0.0008028,3129.3,3128.3,0.0008096]
[1767976414361,0.0008028,3129.3,3128.3,1.61074598]
[1767976414560,3.19640657,3129.3,3128.3,1.61074598]
[1767976414806,4.17258218,3129.3,3128.3,0.6652548]
[1767976414995,0.97617561,3129.2,3128.3,0.6652548]
[1767976415197,3.19640657,3129.3,3128.3,1.61074598]
[1767976415703,0.0008028,3129.3,3128.4,3.19652218]
[1767976415863,0.0008028,3129.3,3128.4,7.81926236]
[1767976416266,0.0008028,3129.3,3128.4,4.62274018]
[1767976417064,0.97697841,3129.3,3128.3,0.0008096]
[1767976417399,0.97617561,3129.2,3128.3,0.0008096]
[1767976417612,0.97617561,3128.9,3127.1,0.94549118]
[1767976417908,0.01274514,3129.0,3127.3,0.94549118]
[1767976417909,6.39263568,3128.6,3127.3,0.94549118]
[1767976418077,0.97617561,3128.5,3127.3,0.94549118]
[1767976418282,0.97617561,3128.5,3127.4,0.25]
[1767976418478,0.97617561,3128.5,3127.1,3.19781032]
[1767976418693,0.97617561,3128.3,3127.1,3.19781032]
[1767976419294,7.36881129,3128.6,3127.1,7.34115254]
[1767976419665,0.97617561,3128.5,3127.1,7.34115254]
[1767976419983,0.98892075,3128.5,3127.1,7.34115254]
[1767976420597,0.98892075,3128.5,3127.0,3.44792613]
[1767976420802,0.97617561,3128.3,3127.0,3.44792613]
[1767976420980,0.97617561,3128.2,3127.0,3.44792613]
[1767976421198,0.97617561,3128.2,3127.1,3.19782374]
[1767976421405,0.97617561,3128.2,3127.0,0.25]
[1767976422074,0.249,3128.3,3127.0,0.25]
[1767976422075,0.97617561,3128.0,3127.0,0.25]
[1767976422396,0.98892075,3127.8,3126.1,0.001]
[1767976422592,0.97617561,3127.6,3126.7,3.19817155]
[1767976422785,0.97617561,3127.6,3126.6,3.19829522]
[1767976422786,0.97617561,3127.6,3126.8,3.19815688]
[1767976422981,0.97617561,3127.6,3126.6,3.1983191]
[1767976423182,0.97617561,3127.6,3126.4,0.25]
[1767976423373,0.97617561,3127.6,3126.0,0.94629262]
[1767976423707,0.98892075,3127.6,3126.4,3.19853506]
[1767976423907,0.98892075,3127.6,3126.2,0.251]
[1767976424074,4.17361765,3127.5,3126.3,3.19866935]
[1767976424274,4.17361765,3127.5,3126.3,3.86361133]
[1767976424682,7.37105969,3127.5,3126.3,3.86361133]
[1767976425410,7.37105969,3127.5,3126.3,0.91594198]
[1767976425772,0.97617561,3127.4,3126.3,0.91594198]
[1767976425977,7.37187769,3127.1,3126.1,0.001]
[1767976426809,7.37187769,3127.1,3126.4,0.001]
[1767976427604,4.17402665,3127.1,3126.4,0.001]
[1767976427791,3.19785104,3127.1,3126.4,0.001]
[1767976428996,3.19766551,3127.3,3126.4,0.001]
[1767976428997,3.19764653,3127.3,3126.4,0.001]
[1767976429204,0.41738221,3127.2,3126.4,0.001]
[1767976429805,3.19764653,3127.3,3126.4,0.001]
[1767976430583,6.39529306,3127.3,3126.4,0.001]
[1767976431192,0.97867077,3127.3,3126.4,0.001]
[1767976431392,0.99141591,3127.3,3126.4,0.001]
[1767976431579,0.97867077,3127.1,3126.4,0.001]
[1767976433418,7.37457737,3127.0,3126.4,0.001]
[1767976433583,4.17662407,3127.0,3126.4,0.001]
[1767976433788,3.1979533,3127.0,3126.4,0.001]
[1767976435992,6.39570208,3127.1,3126.4,0.001]
[1767976436318,8.13798465,3127.1,3126.4,0.001]
[1767976437021,0.97867077,3127.0,3126.4,0.001]
[1767976438022,3.19805558,3126.9,3126.4,0.001]
[1767976439088,6.39611116,3126.9,3126.7,0.001]
[1767976439346,6.39611116,3126.9,3126.4,0.001]
[1767976439347,0.97867077,3126.8,3126.4,0.001]
[1767976439495,1.52319781,3126.7,3126.4,0.001]
[1767976440197,3.19836243,3126.6,3126.4,0.001]
[1767976440604,0.97867077,3126.5,3126.1,0.001]
[1767976441430,0.97867077,3126.5,3126.0,0.00080144]
[1767976442321,3.19856704,3126.4,3126.0,0.00080144]
[1767976442538,8.11337665,3126.4,3126.0,0.00080144]
[1767976442752,11.31274513,3126.4,3125.4,0.97536012]
[1767976443041,8.11417809,3126.4,3125.1,1.18858672]
[1767976443415,0.9442267,3126.3,3125.2,3.19976125]
[1767976443715,1.51479374,3126.3,3125.2,3.19976125]
[1767976443929,1.51479374,3126.3,3125.1,1.18858672]
[1767976444126,0.9442267,3126.1,3125.1,0.001]
[1767976444333,0.9442267,3125.9,3125.1,0.001]
[1767976444506,1.67844463,3125.9,3125.1,0.001]
[1767976445706,0.9442267,3125.8,3125.1,0.001]
[1767976446204,4.14351006,3125.7,3125.1,0.001]
[1767976446400,7.34279342,3125.7,3125.1,0.001]
[1767976446911,4.14351006,3125.7,3125.1,0.001]
[1767976447306,4.71743097,3125.7,3125.1,0.001]
[1767976447503,0.01274514,3126.8,3125.1,0.001]
[1767976447504,3.19870177,3126.3,3125.1,0.93758672]
[1767976447704,0.9442267,3126.3,3125.1,0.001]
[1767976448429,0.9442267,3126.1,3125.1,0.001]
[1767976449332,3.19877167,3126.2,3125.1,0.93758672]
[1767976449633,6.81192332,3126.2,3125.1,0.93758672]
[1767976449842,4.55737835,3126.2,3125.1,0.93758672]
[1767976450538,4.55737835,3126.2,3125.2,6.39959042]
[1767976450730,1.35860668,3126.2,3125.2,6.39959042]
[1767976450925,0.00080144,3126.4,3125.4,0.93658672]
[1767976451509,0.00080144,3126.4,3125.4,0.93758672]
[1767976453047,0.00080144,3126.4,3125.6,0.93658672]
[1767976453230,0.94502814,3126.4,3125.5,3.19948808]
[1767976453837,0.94502814,3126.4,3125.5,6.39897616]
[1767976454037,0.94502814,3126.4,3125.5,3.8645857]
[1767976454240,0.94502814,3126.4,3125.5,7.06407378]
[1767976454547,0.94502814,3126.4,3125.5,3.8645857]
[1767976454752,0.00080144,3126.4,3125.6,0.93658672]
[1767976455057,0.00080144,3126.4,3125.7,6.39856672]
[1767976455264,0.00080144,3126.4,3125.8,0.73351534]
[1767976457061,0.00080144,3126.4,3126.0,6.39795264]
[1767976457661,8.03377752,3128.3,3126.0,6.39795264]
[1767976457662,0.9442267,3127.6,3126.2,0.93658672]
[1767976457810,0.9442267,3127.2,3126.0,7.33534088]
[1767976458013,0.9442267,3127.2,3126.1,0.73353409]
[1767976458246,0.9442267,3127.2,3126.2,0.251]
[1767976459146,0.9442267,3127.0,3126.2,0.251]
[1767976459513,0.9442267,3127.0,3126.2,3.44970548]
[1767976459710,0.9442267,3127.0,3126.0,0.00080152]
[1767976459914,9.60629826,3127.1,3126.0,0.00080152]
[1767976459915,0.9442267,3126.8,3126.0,0.00080152]
[1767976460341,0.9442267,3126.6,3126.0,0.00080152]
[1767976461015,0.9442267,3126.4,3126.0,0.00080152]
[1767976461247,0.95777336,3126.4,3125.4,0.001]
[1767976461546,0.95697184,3126.2,3125.4,0.001]
[1767976462453,0.9442267,3126.1,3125.4,0.001]
[1767976462743,0.26174514,3126.2,3125.1,0.001]
[1767976462744,0.9442267,3125.9,3125.1,0.001]
[1767976463112,0.9442267,3125.7,3125.4,0.001]
[1767976463316,0.9442267,3125.7,3125.1,0.001]
[1767976463548,0.9442267,3125.6,3125.1,0.001]
[1767976463774,0.9442267,3125.6,3124.7,0.00081364]
[1767976463989,0.95697184,3125.6,3124.7,0.00081364]
[1767976464280,0.9442267,3125.5,3124.7,0.00081364]
[1767976464571,0.9442267,3125.3,3124.7,0.00081364]
[1767976464936,0.9442267,3125.3,3123.7,0.93658672]
[1767976465146,4.14426306,3125.0,3123.9,3.20111564]
[1767976465350,0.9442267,3124.9,3124.0,0.34521156]
[1767976465757,0.9442267,3124.9,3124.1,0.251]
[1767976466875,0.9442267,3124.9,3123.7,0.251]
[1767976467044,0.9442267,3124.9,3123.8,6.40239273]
[1767976467406,0.9442267,3124.7,3123.8,6.40239273]
[1767976467544,0.94222671,3124.7,3123.8,7.067732]
[1767976468451,0.00081364,3125.1,3123.9,0.93658672]
[1767976468767,0.00081364,3125.1,3124.1,0.93658672]
[1767976469554,0.00081364,3125.1,3124.2,9.6024582]
[1767976469755,0.00081364,3125.1,3124.3,0.251]
[1767976469956,0.9442267,3125.3,3124.7,0.00081445]
[1767976470764,0.9442267,3125.0,3124.2,3.4518194]
[1767976470971,0.9442267,3125.0,3124.2,3.2008194]
[1767976471384,0.9442267,3125.0,3124.2,6.4016388]
[1767976473816,0.98049149,3124.9,3124.0,3.20096868]
[1767976473961,0.98049149,3124.9,3124.1,3.20089637]
[1767976474300,0.98049149,3124.9,3124.1,3.8661848]
[1767976474456,0.98049149,3124.9,3124.0,0.251]
[1767976474664,0.98049149,3124.9,3123.7,3.20130102]
[1767976474988,0.98049149,3124.9,3123.8,0.251]
[1767976475206,0.98049149,3124.8,3123.5,0.001]
[1767976475499,0.98049149,3124.8,3123.5,6.40407346]
[1767976475662,0.98049149,3124.8,3123.6,0.98566671]
[1767976475663,0.98049149,3124.7,3123.6,0.98566671]
[1767976477059,0.98049149,3124.7,3124.1,0.001]
[1767976477562,0.98049149,3124.5,3124.1,0.001]
[1767976478400,0.98049149,3124.5,3123.5,3.45353673]
[1767976478401,0.98049149,3124.5,3123.5,0.001]
[1767976478575,0.98049149,3124.3,3123.5,0.001]
[1767976479674,0.98049149,3124.1,3123.5,0.001]
[1767976480497,0.98049149,3124.0,3123.5,0.001]
[1767976481363,3.20075443,3124.3,3123.5,0.001]
[1767976481364,0.98049149,3124.3,3123.5,0.001]
[1767976482879,0.98049149,3124.0,3123.5,0.001]
[1767976483083,0.91064099,3124.0,3123.5,0.001]
[1767976484072,4.18134857,3124.2,3123.5,0.001]
[1767976484402,4.9195463,3124.2,3123.5,0.001]
[1767976484604,4.9195463,3124.2,3123.1,6.40389356]
[1767976484605,0.98049149,3124.0,3122.7,3.20232987]
[1767976484779,0.98049149,3124.0,3122.4,4.12904214]
[1767976484987,0.98049149,3124.0,3123.0,3.20202781]
[1767976485186,0.98049149,3124.0,3122.9,3.2021301]
[1767976485398,0.98049149,3124.0,3123.0,3.20204475]
[1767976485602,0.98049149,3123.2,3122.4,0.00080216]
[1767976485905,0.98129365,3122.8,3121.5,3.20358801]
[1767976486080,0.99323663,3122.5,3121.6,0.41302058]
[1767976486287,0.01274514,3122.3,3121.6,0.41302058]
[1767976486483,0.99323663,3122.5,3121.6,0.41302058]
[1767976487399,0.99323663,3122.5,3121.4,6.40834629]
[1767976488215,0.99323663,3122.5,3121.4,0.001]
[1767976488911,0.98049149,3122.5,3121.9,0.001]
[1767976489680,4.19583827,3122.5,3121.9,0.001]
[1767976490514,0.93060992,3122.4,3121.9,0.001]
[1767976490825,0.00080216,3122.8,3121.9,0.001]
[1767976491009,0.249,3122.7,3121.9,0.001]
[1767976492575,0.00080216,3122.8,3121.9,0.001]
[1767976492823,0.00080216,3122.8,3121.9,0.74133479]
[1767976493925,0.01274514,3122.7,3121.9,0.74133479]
[1767976494086,0.94335506,3122.7,3121.9,0.001]
[1767976494617,4.1459301,3122.5,3121.9,0.001]
[1767976494923,0.93060992,3122.5,3121.9,0.001]
[1767976495120,0.01274514,3122.7,3121.9,0.001]
[1767976495291,0.94335506,3122.7,3121.9,0.001]
[1767976495695,0.249,3122.6,3121.9,0.001]
[1767976496010,0.68854886,3122.6,3121.9,0.001]
[1767976496214,0.68654887,3122.6,3121.9,0.001]
[1767976496414,0.00080216,3122.8,3121.9,0.001]
[1767976496620,0.00080216,3122.8,3121.9,0.99678762]
[1767976497509,0.93060992,3123.2,3122.4,0.00080224]
[1767976498287,0.93060992,3122.9,3122.4,0.00080224]
[1767976499388,0.01274514,3122.8,3122.4,0.00080224]
[1767976499589,0.249,3122.8,3122.4,0.00080224]
[1767976499791,0.01274514,3122.6,3121.9,3.20414772]
[1767976500122,0.93060992,3122.7,3122.2,0.001]
[1767976500319,0.00080224,3122.8,3122.2,0.001]
[1767976500520,0.24980224,3122.8,3122.2,0.001]
[1767976500687,0.00080224,3122.8,3122.2,0.001]
[1767976501319,0.93060992,3123.1,3122.4,0.00080232]
[1767976501510,0.249,3123.0,3122.4,0.00080232]
[1767976503026,0.251,3123.2,3122.4,0.00080232]
[1767976503327,0.002,3123.2,3122.4,0.9564662]
[1767976503816,1.17681288,3123.9,3122.7,0.95566388]
[1767976504006,0.249,3123.9,3122.7,0.95566388]
[1767976504719,0.01274514,3124.1,3122.9,0.95566388]
[1767976504912,0.26174514,3124.1,3123.0,1.0562427]
[1767976506204,0.249,3124.1,3123.0,2.01190658]
[1767976506724,0.94255802,3124.5,3123.2,0.95566388]
[1767976506924,0.01274514,3124.3,3123.2,0.95566388]
[1767976507302,0.94055802,3124.3,3123.1,6.40389356]
[1767976507503,0.94055802,3124.3,3123.2,0.74601363]
[1767976507700,0.92781288,3124.0,3123.2,0.74601363]
[1767976508110,0.92781288,3124.0,3123.1,3.20194678]
[1767976508310,0.92781288,3124.0,3123.1,6.40389356]
[1767976508532,0.92781288,3124.0,3123.1,3.20194678]
[1767976508720,4.12893967,3123.9,3122.6,3.20245948]
[1767976509041,0.92781288,3123.5,3122.5,3.20251804]
[1767976509204,0.92781288,3123.3,3122.4,0.00080232]
[1767976509398,0.01274514,3123.4,3122.4,0.00080232]
[1767976509399,0.92781288,3123.0,3122.4,0.00080232]
[1767976509613,0.92781288,3123.0,3122.4,3.20340045]
[1767976510238,0.26174514,3123.2,3122.5,3.20254725]
[1767976510407,0.92781288,3123.4,3122.5,3.52288221]
[1767976510601,0.92781288,3123.7,3122.5,10.88367017]
[1767976510832,0.01474514,3124.5,3122.5,10.88367017]
[1767976510833,0.249,3123.9,3122.7,9.60707079]
[1767976511008,0.92781288,3124.0,3122.7,9.60707079]
[1767976511210,0.249,3123.8,3122.8,1.05627347]
[1767976511514,0.92781288,3124.0,3122.8,1.05627347]
[1767976511720,0.92781288,3123.9,3122.8,1.05627347]
[1767976511907,0.92781288,3123.9,3122.5,0.32033496]
[1767976511908,0.94055802,3123.6,3122.6,3.20242924]
[1767976512228,0.94055802,3123.6,3122.6,3.20242495]
[1767976512530,0.94055802,3123.4,3122.4,0.00080232]
[1767976512728,3.20194678,3123.1,3122.4,0.00080232]
[1767976513300,0.73442883,3123.1,3122.4,0.00080232]
[1767976513494,3.2146121,3123.2,3122.4,0.00080232]
[1767976513694,0.94055802,3123.4,3122.4,0.00080232]
[1767976513926,0.94055802,3123.4,3122.8,0.001]
[1767976513927,0.249,3123.3,3122.8,0.001]
[1767976514731,3.20184426,3123.2,3122.8,0.001]
[1767976514914,4.14240228,3123.2,3122.8,0.001]
[1767976515108,0.43914023,3123.1,3122.8,0.001]
[1767976515319,0.94055802,3123.2,3122.8,0.001]
[1767976515721,0.92781288,3123.2,3122.8,0.001]
[1767976515946,0.92781288,3123.9,3122.8,0.001]
[1767976516097,0.249,3123.4,3122.8,0.001]
[1767976516800,1.17681288,3123.4,3122.8,0.001]
[1767976517535,0.92781288,3123.2,3122.4,0.00080232]
[1767976517749,1.354788,3123.1,3122.4,0.00080232]
[1767976518305,1.34204286,3123.1,3122.4,0.00080232]
[1767976518753,3.21448688,3123.3,3122.4,0.00080232]
[1767976520235,0.002,3123.8,3122.4,0.9564662]
[1767976520407,0.249,3123.7,3122.4,0.9564662]
[1767976521064,0.002,3123.8,3122.5,0.95566388]
[1767976521950,3.20323281,3123.8,3122.6,6.40491896]
[1767976522151,0.002,3123.8,3122.7,0.76115828]
[1767976522606,0.01274514,3123.5,3122.4,3.20340878]
[1767976522936,0.94055802,3123.3,3122.4,3.20345053]
[1767976523153,0.94055802,3123.3,3122.4,0.00080232]
[1767976523501,0.94055802,3123.3,3122.4,3.203445]
[1767976523723,0.94055802,3123.3,3122.4,0.00080232]
[1767976523724,0.01274514,3123.1,3122.4,0.00080232]
[1767976524209,3.21453497,3123.3,3122.4,0.00080232]
[1767976524509,0.66652438,3123.2,3122.4,0.00080232]
[1767976525861,1.6070824,3123.2,3122.4,0.00080232]
[1767976526149,0.01354746,3122.8,3121.5,0.251]
[1767976526350,0.01274514,3122.4,3121.5,0.251]
[1767976526508,0.94055802,3122.6,3121.5,0.59647827]
[1767976526921,0.94055802,3122.4,3121.5,0.59647827]
[1767976527144,0.92781288,3122.7,3121.5,0.59647827]
[1767976527336,0.00080232,3122.8,3121.5,0.251]
[1767976527516,0.00080232,3122.8,3121.5,1.20666388]
[1767976528113,0.00080232,3122.8,3121.5,4.41019914]
[1767976528615,0.01354746,3122.8,3121.6,6.40697078]
[1767976529038,0.00080232,3122.8,3121.6,10.56612005]
[1767976529237,0.00080232,3122.8,3121.7,1.08171201]
[1767976529442,0.00080232,3122.8,3121.7,2.03737589]
[1767976530051,0.00080232,3122.8,3121.8,6.4065603]
[1767976530710,0.94136034,3122.8,3121.8,3.20328015]
[1767976530915,1.5829748,3122.8,3121.7,3.20336951]
[1767976531116,1.5829748,3122.8,3121.7,6.40675228]
[1767976531417,1.56494059,3122.8,3122.4,0.0008024]
[1767976531617,1.55219545,3122.8,3122.4,0.0008024]
[1767976531815,0.91058099,3122.8,3122.4,0.0008024]
[1767976532054,0.249,3122.9,3122.4,0.0008024]
[1767976532750,3.45116855,3122.9,3122.4,0.0008024]
[1767976533052,0.98992933,3122.8,3122.4,0.0008024]
[1767976533249,0.249,3122.9,3122.4,0.0008024]
[1767976534250,3.45116047,3122.9,3122.4,0.0008024]
[1767976534472,0.98992933,3122.5,3121.4,0.251]
[1767976534623,0.249,3122.4,3121.7,3.20337464]
[1767976535388,0.249,3122.4,3121.3,3.20370636]
[1767976535389,1.25167447,3122.4,3121.3,3.20370636]
[1767976535595,1.25167447,3122.4,3121.4,3.52404322]
[1767976535884,1.25167447,3122.4,3121.5,3.20353656]
[1767976536088,0.98992933,3122.3,3121.5,3.20353656]
[1767976536270,0.98992933,3122.3,3121.6,3.20344185]
[1767976536474,0.98992933,3122.3,3121.5,3.20358158]
[1767976536802,0.98992933,3122.7,3121.6,0.35239522]
[1767976537099,0.249,3122.3,3121.6,0.35239522]
[1767976538177,0.98992933,3122.7,3121.6,0.35239522]
[1767976538483,0.0008024,3122.8,3121.7,9.61014831]
[1767976540587,0.002,3122.5,3122.0,0.001]
[1767976540792,0.0008024,3122.8,3122.0,0.001]
[1767976541085,0.0028024,3122.8,3122.0,0.001]
[1767976541298,0.99273173,3122.8,3122.0,0.001]
[1767976542069,0.0028024,3122.8,3122.0,0.001]
[1767976542696,0.99273173,3122.8,3122.0,0.001]
[1767976542892,1.00267447,3122.7,3122.0,0.001]
[1767976543099,0.98992933,3122.4,3122.0,0.001]
[1767976543889,0.98992933,3122.1,3122.0,0.001]
[1767976544286,0.98992933,3122.6,3122.0,0.001]
[1767976544531,0.01274514,3122.7,3122.0,0.001]
[1767976544532,0.249,3122.7,3122.0,0.001]
[1767976544678,0.99273173,3122.8,3122.0,0.001]
[1767976545219,0.98992933,3122.7,3122.0,0.001]